fUST/lending_fUST_20250814
["ID","MTS","AMOUNT","RATE_DAILY","PERIOD"]
[379113081,1755149444145,-480.84,0.00018208,2]
[379113083,1755149444154,-460.0,0.00018208,2]
[379113085,1755149444163,-460.0,0.00018208,2]
[379113087,1755149444174,-460.0,0.00018208,2]
[379113089,1755149444183,-460.0,0.00018208,2]
[379113091,1755149444192,-460.0,0.00018208,2]
[379113093,1755149444201,-595.76,0.00018208,2]
[379113095,1755149444211,-703.49,0.00018208,2]
[379113096,1755149444220,-460.0,0.00018208,2]
[379113098,1755149444235,-460.0,0.00018208,2]
[379113100,1755149444244,-460.0,0.00018208,2]
[379113102,1755149444254,-460.0,0.00018208,2]
[379113104,1755149444264,-460.0,0.00018208,2]
[379113106,1755149444274,-500.0,0.00018208,2]
[379113108,1755149444283,-460.0,0.00018208,2]
[379113110,1755149444292,-460.0,0.00018208,2]
[379113112,1755149444302,-460.0,0.00018208,2]
[379113114,1755149444311,-460.0,0.00018208,2]
[379113116,1755149444320,-151.0,0.00018208,2]
[379113118,1755149444330,-460.0,0.00018208,2]
[379113120,1755149444340,-151.0,0.00018208,2]
[379113122,1755149444349,-460.0,0.00018208,2]
[379113124,1755149444358,-460.0,0.00018208,2]
[379113126,1755149444368,-460.0,0.00018208,2]
[379113128,1755149444377,-1842.04,0.00018208,2]
[379113130,1755149444387,-151.0,0.00018208,2]
[379113132,1755149444396,-151.0,0.00018208,2]
[379113134,1755149444406,-460.0,0.00018208,2]
[379113136,1755149444415,-460.0,0.00018208,2]
[379113138,1755149444425,-460.0,0.00018208,2]
[379113140,1755149444434,-460.0,0.00018208,2]
[379113142,1755149444444,-460.0,0.00018208,2]
[379113144,1755149444452,-460.0,0.00018208,2]
[379113146,1755149444463,-157.51942593,0.00018208,2]
[379113148,1755149444472,-460.0,0.00018208,2]
[379113150,1755149444481,-1016.44,0.00018208,2]
[379113152,1755149444490,-460.0,0.00018208,2]
[379113153,1755149444500,-460.0,0.00018208,2]
[379113155,1755149444510,-460.0,0.00018208,2]
[379113157,1755149444520,-460.0,0.00018208,2]
[379113160,1755149444529,-460.0,0.00018208,2]
[379113162,1755149444540,-460.0,0.00018208,2]
[379113164,1755149444549,-483.26827,0.00018209,2]
[379113166,1755149444558,-483.26827,0.00018209,2]
[379113168,1755149444567,-151.0,0.00018209,2]
[379113170,1755149444576,-151.0,0.0001821,2]
[379113171,1755149444585,-151.0,0.0001821,2]
[379113174,1755149444596,-460.0,0.0001821,2]
[379113175,1755149444605,-151.0,0.0001821,2]
[379113177,1755149444614,-151.0,0.0001821,2]
[379113179,1755149444623,-460.0,0.0001821,2]
[379113181,1755149444633,-460.0,0.0001821,2]
[379113183,1755149444644,-460.0,0.0001821,2]
[379113185,1755149444653,-591.16,0.0001821,2]
[379113187,1755149444662,-151.0,0.0001821,2]
[379113189,1755149444671,-567.63,0.0001821,2]
[379113191,1755149444680,-460.0,0.0001821,2]
[379113193,1755149444689,-460.0,0.0001821,2]
[379113195,1755149444698,-460.0,0.0001821,2]
[379113198,1755149444709,-151.0,0.00018211,2]
[379113200,1755149444719,-151.0,0.00018211,2]
[379113201,1755149444728,-591.24,0.00018211,2]
[379113204,1755149444738,-460.0,0.00018211,2]
[379113206,1755149444748,-460.0,0.00018211,2]
[379113208,1755149444757,-152.500162,0.00018211,2]
[379113209,1755149444766,-460.0,0.00018211,2]
[379113211,1755149444775,-460.0,0.00018211,2]
[379113213,1755149444786,-151.0,0.00018211,2]
[379113215,1755149444796,-151.0,0.00018211,2]
[379113217,1755149444805,-460.0,0.00018211,2]
[379113219,1755149444815,-599.0,0.00018211,2]
[379113222,1755149444825,-460.0,0.00018211,2]
[379113223,1755149444834,-460.0,0.00018211,2]
[379113225,1755149444843,-460.0,0.00018211,2]
[379113227,1755149444853,-460.0,0.00018211,2]
[379113229,1755149444863,-460.0,0.00018211,2]
[379113231,1755149444872,-460.0,0.00018211,2]
[379113233,1755149444882,-717.46,0.00018211,2]
[379113235,1755149444892,-460.0,0.00018211,2]
[379113238,1755149444903,-460.0,0.00018211,2]
[379113239,1755149444912,-474.862729,0.00018211,2]
[379113241,1755149444921,-151.0,0.00018211,2]
[379113243,1755149444930,-474.862729,0.00018211,2]
[379113245,1755149444941,-467.99427708,0.00018211,2]
[379113247,1755149444951,-460.0,0.00018211,2]
[379113249,1755149444960,-460.0,0.00018211,2]
[379113251,1755149444969,-151.0,0.00018211,2]
[379113253,1755149444979,-1077.89,0.00018211,2]
[379113255,1755149444988,-483.26827,0.00018211,2]
[379113257,1755149444997,-483.26827,0.00018211,2]
[379113259,1755149445006,-467.75979829,0.00018211,2]
[379113261,1755149445016,-460.0,0.00018211,2]
[379113263,1755149445025,-151.0,0.00018211,2]
[379113265,1755149445034,-460.0,0.00018211,2]
[379113267,1755149445044,-151.0,0.00018211,2]
[379113269,1755149445053,-460.0,0.00018211,2]
[379113271,1755149445062,-151.0,0.00018211,2]
[379113273,1755149445072,-151.0,0.00018211,2]
[379113274,1755149445081,-460.77110989,0.00018211,2]
[379113276,1755149445090,-460.0,0.00018211,2]
[379113278,1755149445099,-460.0,0.00018211,2]
[379113280,1755149445109,-460.0,0.00018211,2]
[379113283,1755149445118,-460.0,0.00018211,2]
[379113285,1755149445128,-460.0,0.00018211,2]
[379113287,1755149445137,-151.0,0.00018211,2]
[379113288,1755149445147,-460.0,0.00018211,2]
[379113290,1755149445156,-460.0,0.00018211,2]
[379113292,1755149445166,-151.0,0.00018211,2]
[379113294,1755149445179,-151.0,0.00018211,2]
[379113296,1755149445188,-151.0,0.00018211,2]
[379113298,1755149445197,-151.0,0.00018211,2]
[379113300,1755149445207,-373.621329,0.00018211,2]
[379113302,1755149445217,-373.621329,0.00018211,2]
[379113304,1755149445226,-151.0,0.00018211,2]
[379113306,1755149445235,-460.0,0.00018211,2]
[379113308,1755149445246,-460.0,0.00018211,2]
[379113310,1755149445255,-151.0,0.00018211,2]
[379113312,1755149445264,-460.0,0.00018211,2]
[379113314,1755149445273,-460.0,0.00018211,2]
[379113316,1755149445282,-460.0,0.00018211,2]
[379113318,1755149445291,-460.0,0.00018211,2]
[379113320,1755149445301,-460.0,0.00018211,2]
[379113322,1755149445310,-460.0,0.00018211,2]
[379113324,1755149445319,-460.0,0.00018211,2]
[379113326,1755149445328,-460.0,0.00018211,2]
[379113328,1755149445337,-151.0,0.00018212,2]
[379113330,1755149445347,-151.0,0.00018212,2]
[379113332,1755149445356,-151.0,0.00018212,2]
[379113334,1755149445366,-151.0,0.00018212,2]
[379113336,1755149445375,-151.254316,0.00018212,2]
[379113338,1755149445384,-483.26827,0.00018212,2]
[379113340,1755149445394,-483.26827,0.00018212,2]
[379113342,1755149445403,-151.0,0.00018212,2]
[379113343,1755149445412,-500.0,0.00018212,2]
[379113345,1755149445421,-151.0,0.0001822,2]
[379113347,1755149445431,-155.893141,0.0001822,2]
[379113349,1755149445441,-152.498058,0.0001822,2]
[379113351,1755149445450,-151.0,0.00018221,2]
[379113353,1755149445459,-190.45,0.00018221,2]
[379113355,1755149445468,-190.45,0.00018221,2]
[379113357,1755149445477,-151.0,0.00018221,2]
[379113359,1755149445486,-527.524838,0.00018221,2]
[379113361,1755149445496,-527.524838,0.00018221,2]
[379113363,1755149445505,-151.0,0.00018221,2]
[379113365,1755149445515,-151.0,0.00018221,2]
[379113367,1755149445525,-151.0,0.00018221,2]
[379113369,1755149445535,-190.118745,0.00018221,2]
[379113371,1755149445545,-151.0,0.00018221,2]
[379113373,1755149445554,-151.0,0.00018221,2]
[379113375,1755149445563,-151.0,0.00018221,2]
[379113377,1755149445573,-151.0,0.00018221,2]
[379113379,1755149445582,-740.189035,0.00018221,2]
[379113381,1755149445591,-740.189035,0.00018221,2]
[379113383,1755149445601,-251.080128,0.00018221,2]
[379113385,1755149445610,-151.0,0.00018221,2]
[379113387,1755149445619,-151.0,0.00018221,2]
[379113389,1755149445629,-151.0,0.00018221,2]
[379113391,1755149445638,-188.028456,0.00018221,2]
[379113392,1755149445648,-151.0,0.00018221,2]
[379113394,1755149445658,-151.0,0.00018221,2]
[379113396,1755149445667,-151.0,0.00018221,2]
[379113398,1755149445676,-151.0,0.00018221,2]
[379113400,1755149445686,-151.0,0.00018221,2]
[379113402,1755149445695,-373.621329,0.00018221,2]
[379113404,1755149445704,-373.621329,0.00018221,2]
[379113406,1755149445714,-151.0,0.00018221,2]
[379113408,1755149445723,-151.0,0.00018221,2]
[379113410,1755149445732,-151.0,0.00018222,2]
[379113412,1755149445742,-527.524838,0.00018223,2]
[379113414,1755149445751,-527.524838,0.00018223,2]
[379113416,1755149445761,-151.0,0.00018224,2]
[379113418,1755149445770,-151.0,0.00018224,2]
[379113420,1755149445779,-151.0,0.00018224,2]
[379113422,1755149445788,-151.0,0.00018224,2]
[379113424,1755149445798,-190.45,0.00018224,2]
[379113426,1755149445807,-190.45,0.00018224,2]
[379113428,1755149445816,-190.45,0.00018224,2]
[379113430,1755149445825,-190.45,0.00018224,2]
[379113432,1755149445835,-151.0,0.00018224,2]
[379113434,1755149445844,-151.0,0.00018224,2]
[379113436,1755149445853,-527.524838,0.00018224,2]
[379113438,1755149445864,-527.524838,0.00018224,2]
[379113440,1755149445873,-151.469601,0.00018224,2]
[379113442,1755149445882,-151.0,0.00018224,2]
[379113444,1755149445893,-474.862729,0.00018224,2]
[379113446,1755149445903,-474.862729,0.00018224,2]
[379113448,1755149445912,-151.0,0.00018224,2]
[379113450,1755149445922,-503.20756038,0.00018273,2]
[379113452,1755149445931,-500.0,0.00018273,2]
[379113454,1755149445940,-500.0,0.00018273,2]
[379113455,1755149445950,-261.60064091,0.00018273,2]
[379113457,1755149445960,-500.0,0.00018273,2]
[379113459,1755149445969,-500.0,0.00018273,2]
[379113461,1755149445978,-500.0,0.00018273,2]
[379113463,1755149445988,-500.0,0.00018273,2]
[379113465,1755149445997,-506.31688566,0.00018273,2]
[379113467,1755149446006,-500.0,0.00018273,2]
[379113469,1755149446015,-500.0,0.00018273,2]
[379113471,1755149446024,-4952.0,0.00018324,2]
[379113473,1755149446034,-524.69038578,0.0001847,2]
[379113475,1755149446045,-460.0,0.0001847,2]
[379113477,1755149446054,-770.95,0.0001847,2]
[379113479,1755149446063,-1051.72,0.0001847,2]
[379113481,1755149446073,-2761.93,0.0001847,2]
[379113483,1755149446083,-638.77,0.0001847,2]
[379113485,1755149446093,-460.0,0.0001847,2]
[379113487,1755149446103,-460.0,0.0001847,2]
[379113488,1755149446113,-240.13795879,0.0001847,2]
[379113489,1755149446122,-460.0,0.0001847,2]
[379113490,1755149446131,-500.0,0.00018473,2]
[379113491,1755149446142,-500.0,0.00018473,2]
[379113492,1755149446152,-500.0,0.00018473,2]
[379113493,1755149446161,-500.0,0.00018473,2]
[379113494,1755149446173,-500.0,0.00018473,2]
[379113495,1755149446184,-500.0,0.00018473,2]
[379113497,1755149446193,-500.0,0.00018473,2]
[379113499,1755149446202,-500.0,0.00018473,2]
[379113501,1755149446211,-500.0,0.00018473,2]
[379113503,1755149446221,-500.0,0.00018473,2]
[379113505,1755149446231,-500.0,0.00018473,2]
[379113507,1755149446240,-500.0,0.00018473,2]
[379113509,1755149446251,-500.0,0.00018473,2]
[379113511,1755149446261,-500.0,0.00018473,2]
[379113513,1755149446271,-570.89467985,0.00018473,2]
[379113515,1755149446281,-501.12362808,0.00018473,2]
[379113517,1755149446290,-500.0,0.00018473,2]
[379113519,1755149446299,-298.81082974,0.00018473,2]
[379113521,1755149446308,-500.0,0.00018473,2]
[379113523,1755149446318,-472.67148137,0.00018473,2]
[379113525,1755149446327,-500.9777927,0.00018473,2]
[379113527,1755149446336,-500.0,0.00018473,2]
[379113529,1755149446345,-500.0,0.00018473,2]
[379113531,1755149446355,-500.0,0.00018473,2]
[379113533,1755149446364,-500.0,0.00018473,2]
[379113535,1755149446374,-500.0,0.00018473,2]
[379113537,1755149446383,-500.0,0.00018473,2]
[379113539,1755149446393,-537.4981491,0.00018473,2]
[379113541,1755149446403,-500.0,0.00018473,2]
[379113543,1755149446412,-188.56964468,0.00018473,2]
[379113545,1755149446422,-500.0,0.00018473,2]
[379113547,1755149446430,-500.0,0.00018473,2]
[379113549,1755149446440,-500.0,0.00018473,2]
[379113551,1755149446449,-500.0,0.00018473,2]
[379113553,1755149446459,-500.0,0.00018473,2]
[379113555,1755149446468,-500.0,0.00018473,2]
[379113557,1755149446477,-500.0,0.00018473,2]
[379113559,1755149446487,-500.0,0.00018473,2]
[379113561,1755149446496,-500.0,0.00018473,2]
[379113563,1755149446505,-501.6437431,0.00018473,2]
[379113565,1755149446514,-507.40023033,0.00018473,2]
[379113567,1755149446523,-500.0,0.00018473,2]
[379113569,1755149446532,-500.0,0.00018473,2]
[379113571,1755149446542,-500.0,0.00018473,2]
[379113573,1755149446552,-500.0,0.00018473,2]
[379113575,1755149446562,-500.0,0.00018473,2]
[379113577,1755149446571,-500.0,0.00018473,2]
[379113579,1755149446580,-500.0,0.00018473,2]
[379113581,1755149446589,-500.0,0.00018473,2]
[379113583,1755149446599,-500.0,0.00018473,2]
[379113585,1755149446608,-500.0,0.00018473,2]
[379113587,1755149446617,-159.9936191,0.00018473,2]
[379113589,1755149446626,-569.62599455,0.00018473,2]
[379113591,1755149446635,-500.0,0.00018473,2]
[379113593,1755149446644,-500.0,0.00018473,2]
[379113595,1755149446653,-500.0,0.00018473,2]
[379113596,1755149446662,-500.0,0.00018473,2]
[379113597,1755149446671,-500.0,0.00018473,2]
[379113598,1755149446680,-460.07199425,0.00018473,2]
[379113599,1755149446689,-500.0,0.00018473,2]
[379113600,1755149446698,-500.93104883,0.00018473,2]
[379113601,1755149446707,-500.0,0.00018473,2]
[379113602,1755149446716,-500.0,0.00018473,2]
[379113603,1755149446726,-500.0,0.00018473,2]
[379113604,1755149446736,-500.0,0.00018473,2]
[379113605,1755149446745,-500.0,0.00018473,2]
[379113606,1755149446755,-500.90463138,0.00018473,2]
[379113607,1755149446764,-500.0,0.00018473,2]
[379113608,1755149446773,-223.692644,0.00018473,2]
[379113609,1755149446782,-151.0,0.00018473,2]
[379113610,1755149446791,-190.45,0.00018473,2]
[379113611,1755149446801,-190.45,0.00018473,2]
[379113612,1755149446810,-151.0,0.00018473,2]
[379113613,1755149446819,-527.524838,0.00018473,2]
[379113614,1755149446828,-527.524838,0.00018473,2]
[379113615,1755149446838,-151.0,0.00018473,2]
[379113616,1755149446847,-151.0,0.00018473,2]
[379113617,1755149446857,-151.0,0.00018473,2]
[379113618,1755149447008,-483.26827,0.00018473,2]
[379113619,1755149447017,-483.26827,0.00018473,2]
[379113620,1755149447027,-151.0,0.00018473,2]
[379113621,1755149447037,-151.0,0.00018473,2]
[379113622,1755149447047,-170.92879495,0.00018477,2]
[379113623,1755149447056,-800.21,0.00018477,2]
[379113624,1755149447066,-460.0,0.00018477,2]
[379113625,1755149447075,-502.14,0.00018477,2]
[379113626,1755149447085,-3828.25,0.00018477,2]
[379113627,1755149447095,-460.0,0.00018477,2]
[379113628,1755149447104,-4678.59,0.00018477,2]
[379113629,1755149447114,-460.0,0.00018477,2]
[379113630,1755149447123,-1101.73,0.00018477,2]
[379113631,1755149447132,-460.0,0.00018477,2]
[379113632,1755149447147,-460.0,0.00018477,2]
[379113633,1755149447156,-578.59,0.00018477,2]
[379113634,1755149447166,-460.0,0.00018477,2]
[379113635,1755149447180,-2138.33,0.00018477,2]
[379113636,1755149447189,-1013.97,0.00018477,2]
[379113637,1755149447199,-4399.81,0.00018477,2]
[379113638,1755149447208,-4333.78,0.00018477,2]
[379113639,1755149447219,-460.0,0.00018477,2]
[379113640,1755149447228,-6460.85,0.00018477,2]
[379113641,1755149447239,-809.25,0.00018477,2]
[379113642,1755149447248,-460.0,0.00018477,2]
[379113643,1755149447258,-480.29,0.00018477,2]
[379113644,1755149447267,-589.0,0.00018477,2]
[379113645,1755149447276,-2940.49,0.00018477,2]
[379113646,1755149447286,-1116.98,0.00018477,2]
[379113647,1755149447295,-1065.4,0.00018477,2]
[379113648,1755149447304,-460.0,0.00018477,2]
[379113649,1755149447314,-1544.78,0.00018477,2]
[379113650,1755149447323,-460.0,0.00018477,2]
[379113651,1755149447332,-460.0,0.00018477,2]
[379113652,1755149447342,-460.0,0.00018477,2]
[379113653,1755149447351,-460.0,0.00018477,2]
[379113654,1755149447361,-340.0,0.00018478,2]
[379113655,1755149447371,-460.0,0.00018478,2]
[379113656,1755149447380,-704.76,0.00018478,2]
[379113657,1755149447390,-460.0,0.00018478,2]
[379113658,1755149447399,-460.0,0.00018478,2]
[379113659,1755149447408,-460.0,0.00018478,2]
[379113661,1755149447419,-465.64220362,0.00018478,2]
[379113663,1755149447428,-460.0,0.00018478,2]
[379113665,1755149447445,-1372.05,0.00018478,2]
[379113666,1755149447454,-2295.5,0.00018478,2]
[379113668,1755149447463,-1075.86,0.00018478,2]
[379113670,1755149447473,-460.0,0.00018478,2]
[379113673,1755149447482,-460.0,0.00018478,2]
[379113674,1755149447492,-460.0,0.00018478,2]
[379113676,1755149447502,-460.0,0.00018478,2]
[379113678,1755149447511,-840.85,0.00018478,2]
[379113681,1755149447521,-460.0,0.00018478,2]
[379113682,1755149447530,-878.7,0.00018478,2]
[379113684,1755149447542,-460.0,0.00018478,2]
[379113687,1755149447557,-460.0,0.00018478,2]
[379113689,1755149447568,-460.0,0.00018478,2]
[379113691,1755149447577,-1618.07,0.00018478,2]
[379113693,1755149447586,-460.0,0.00018478,2]
[379113695,1755149447596,-620.49,0.00018478,2]
[379113696,1755149447609,-1133.7,0.00018478,2]
[379113698,1755149447621,-587.36,0.00018478,2]
[379113700,1755149447639,-869.44,0.00018478,2]
[379113702,1755149447649,-539.21739071,0.00018478,2]
[379113704,1755149447659,-1231.38,0.00018478,2]
[379113706,1755149447668,-581.91,0.00018478,2]
[379113708,1755149447677,-1086.09,0.00018478,2]
[379113710,1755149447687,-460.0,0.00018478,2]
[379113712,1755149447696,-460.0,0.00018478,2]
[379113714,1755149447706,-460.0,0.00018478,2]
[379113716,1755149447715,-460.0,0.00018478,2]
[379113718,1755149447725,-460.0,0.00018478,2]
[379113720,1755149447734,-460.0,0.00018478,2]
[379113722,1755149447744,-1683.23,0.00018478,2]
[379113724,1755149447754,-1028.64,0.00018478,2]
[379113726,1755149447763,-460.0,0.00018478,2]
[379113727,1755149447772,-938.86,0.00018478,2]
[379113729,1755149447782,-151.0,0.00018478,2]
[379113731,1755149447792,-460.0,0.00018478,2]
[379113733,1755149447801,-460.0,0.00018478,2]
[379113736,1755149447814,-460.0,0.00018478,2]
[379113738,1755149447824,-963.63,0.00018478,2]
[379113739,1755149447833,-479.31,0.00018478,2]
[379113741,1755149447843,-1479.72,0.00018478,2]
[379113743,1755149447853,-460.0,0.00018478,2]
[379113745,1755149447862,-460.0,0.00018478,2]
[379113747,1755149447872,-460.0,0.00018478,2]
[379113749,1755149447881,-460.0,0.00018479,2]
[379113751,1755149447892,-460.0,0.00018479,2]
[379113753,1755149447902,-460.0,0.00018479,2]
[379113755,1755149447911,-460.0,0.00018479,2]
[379113757,1755149447921,-351.20523438,0.00018479,2]
[379113759,1755149447930,-192.76592853,0.00018479,2]
[379113761,1755149447940,-482.43396844,0.00018479,2]
[379113763,1755149447950,-460.0,0.00018479,2]
[379113765,1755149447959,-460.0,0.00018479,2]
[379113767,1755149447969,-460.0,0.00018479,2]
[379113769,1755149447978,-460.0,0.00018479,2]
[379113771,1755149447988,-460.0,0.00018479,2]
[379113773,1755149447998,-460.0,0.00018479,2]
[379113775,1755149448007,-460.0,0.00018479,2]
[379113777,1755149448017,-460.0,0.00018479,2]
[379113779,1755149448026,-460.0,0.00018479,2]
[379113781,1755149448036,-325.43632091,0.00018479,2]
[379113783,1755149448046,-460.0,0.00018479,2]
[379113785,1755149448056,-460.0,0.00018479,2]
[379113786,1755149448066,-460.0,0.00018479,2]
[379113788,1755149448076,-460.0,0.00018479,2]
[379113790,1755149448087,-460.0,0.00018479,2]
[379113792,1755149448097,-460.0,0.00018479,2]
[379113794,1755149448107,-460.0,0.00018479,2]
[379113796,1755149448116,-460.0,0.00018479,2]
[379113798,1755149448126,-464.17,0.00018479,2]
[379113800,1755149448136,-460.0,0.00018479,2]
[379113802,1755149448148,-460.0,0.00018479,2]
[379113804,1755149448158,-554.27,0.00018479,2]
[379113806,1755149448173,-460.0,0.00018479,2]
[379113808,1755149448184,-260.8088547,0.00018479,2]
[379113810,1755149448194,-514.98,0.00018479,2]
[379113813,1755149448204,-460.0,0.00018479,2]
[379113814,1755149448216,-460.0,0.00018479,2]
[379113816,1755149448226,-151.0,0.00018479,2]
[379113819,1755149448237,-460.0,0.00018479,2]
[379113820,1755149448248,-460.0,0.00018479,2]
[379113822,1755149448258,-460.0,0.00018479,2]
[379113824,1755149448269,-314.18270476,0.00018479,2]
[379113826,1755149448278,-460.0,0.00018479,2]
[379113828,1755149448288,-460.0,0.00018479,2]
[379113830,1755149448298,-460.0,0.00018479,2]
[379113832,1755149448308,-460.0,0.00018479,2]
[379113834,1755149448317,-460.0,0.00018479,2]
[379113836,1755149448326,-151.0,0.00018479,2]
[379113838,1755149448336,-460.0,0.00018479,2]
[379113840,1755149448346,-159.24517,0.00018479,2]
[379113842,1755149448355,-763.04,0.00018479,2]
[379113844,1755149448365,-460.0,0.00018479,2]
[379113846,1755149448374,-474.0,0.00018479,2]
[379113847,1755149448384,-267.35711183,0.00018479,2]
[379113849,1755149448396,-460.0,0.00018479,2]
[379113851,1755149448406,-595.16208974,0.00018479,2]
[379113853,1755149448417,-460.0,0.00018479,2]
[379113856,1755149448427,-173.02580037,0.00018479,2]
[379113857,1755149448436,-460.0,0.00018479,2]
[379113859,1755149448446,-460.0,0.00018479,2]
[379113861,1755149448456,-167.622002,0.00018479,2]
[379113863,1755149448466,-151.0,0.00018479,2]
[379113865,1755149448476,-460.0,0.00018479,2]
[379113867,1755149448488,-416.08864186,0.00018479,2]
[379113869,1755149448498,-460.0,0.00018479,2]
[379113871,1755149448508,-373.621329,0.00018479,2]
[379113873,1755149448518,-373.621329,0.00018479,2]
[379113875,1755149448528,-460.0,0.00018479,2]
[379113877,1755149448537,-151.0,0.00018479,2]
[379113879,1755149448548,-460.0,0.00018479,2]
[379113881,1755149448557,-460.0,0.00018479,2]
[379113883,1755149448567,-460.0,0.00018479,2]
[379113885,1755149448576,-460.0,0.00018479,2]
[379113887,1755149448585,-460.0,0.00018479,2]
[379113889,1755149448594,-513.43,0.00018479,2]
[379113891,1755149448604,-460.0,0.00018479,2]
[379113893,1755149448613,-460.0,0.00018479,2]
[379113895,1755149448622,-460.0,0.00018479,2]
[379113897,1755149448632,-460.0,0.00018479,2]
[379113899,1755149448642,-460.0,0.00018479,2]
[379113901,1755149448652,-460.0,0.00018479,2]
[379113903,1755149448662,-460.0,0.00018479,2]
[379113904,1755149448671,-460.0,0.00018479,2]
[379113906,1755149448681,-460.0,0.00018479,2]
[379113908,1755149448691,-460.0,0.00018479,2]
[379113910,1755149448701,-1159.8,0.00018479,2]
[379113912,1755149448711,-460.0,0.00018479,2]
[379113914,1755149448721,-460.0,0.00018479,2]
[379113916,1755149448732,-479.98,0.00018479,2]
[379113918,1755149448742,-14850.55,0.00018479,2]
[379113920,1755149448751,-460.0,0.00018479,2]
[379113922,1755149448761,-1445.67,0.00018479,2]
[379113924,1755149448771,-460.0,0.00018479,2]
[379113926,1755149448781,-460.0,0.00018479,2]
[379113928,1755149448790,-1143.47,0.00018479,2]
[379113930,1755149448800,-1493.24,0.00018479,2]
[379113932,1755149448810,-460.0,0.00018479,2]
[379113934,1755149448819,-460.0,0.00018479,2]
[379113936,1755149448829,-527.29,0.00018479,2]
[379113938,1755149448839,-460.0,0.00018479,2]
[379113940,1755149448848,-269.31868935,0.00018479,2]
[379113942,1755149448859,-460.0,0.00018479,2]
[379113944,1755149448868,-1388.57,0.00018479,2]
[379113945,1755149448878,-667.86,0.00018479,2]
[379113947,1755149448888,-460.0,0.00018479,2]
[379113949,1755149448901,-11335.36,0.00018479,2]
[379113952,1755149448911,-460.0,0.00018479,2]
[379113954,1755149448921,-904.95,0.00018479,2]
[379113955,1755149448932,-151.0,0.00018479,2]
[379113957,1755149448943,-460.0,0.00018479,2]
[379113959,1755149448954,-743.03,0.00018479,2]
[379113961,1755149448964,-460.0,0.00018479,2]
[379113963,1755149448975,-988.05,0.00018479,2]
[379113965,1755149448984,-460.0,0.00018479,2]
[379113967,1755149448994,-460.0,0.00018479,2]
[379113969,1755149449004,-473.97508372,0.0001848,2]
[379113971,1755149449014,-460.0,0.0001848,2]
[379113973,1755149449025,-460.0,0.0001848,2]
[379113975,1755149449035,-460.0,0.0001848,2]
[379113977,1755149449045,-151.0,0.0001848,2]
[379113979,1755149449056,-460.0,0.0001848,2]
[379113981,1755149449067,-639.08,0.0001848,2]
[379113983,1755149449078,-568.42,0.0001848,2]
[379113985,1755149449088,-498.52,0.0001848,2]
[379113987,1755149449099,-460.0,0.0001848,2]
[379113989,1755149449111,-460.0,0.0001848,2]
[379113991,1755149449122,-460.0,0.0001848,2]
[379113993,1755149449134,-460.0,0.0001848,2]
[379113995,1755149449147,-460.0,0.0001848,2]